bitfinex/quotes_SOLUSD_20241007
["timestamp","ask_amount","ask_price","bid_price","bid_amount"]
[1728334561256,6.8424,146.15,146.11,23.776884]
[1728334561459,20.0,146.17,146.11,23.776884]
[1728334561768,6.8433,146.13,146.1,17.1113]
[1728334562769,20.0,146.17,146.08,6.21319]
[1728334562956,6.8444,146.11,146.08,6.0877]
[1728334564664,6.8438,146.12,146.09,23.776884]
[1728334564873,20.0,146.15,146.09,23.776884]
[1728334565576,6.8436,146.12,146.09,23.776884]
[1728334569948,20.0,146.15,146.1,1.36874925]
[1728334570154,6.8428,146.14,146.1,8.21304925]
[1728334570372,37.1019,146.19,146.11,30.620684]
[1728334570373,6.8426,146.15,146.11,30.620684]
[1728334570570,6.8426,146.15,146.12,1.36848045]
[1728334572373,6.8426,146.15,146.11,30.620684]
[1728334576584,6.8426,146.15,146.12,6.8436]
[1728334577051,20.0,146.18,146.12,6.8436]
[1728334577259,6.842,146.16,146.12,6.8436]
[1728334577881,6.8423,146.15,146.12,6.8436]
[1728334586283,20.0,146.18,146.11,17.1102]
[1728334586593,6.8428,146.14,146.11,17.1102]
[1728334589975,6.8423,146.15,146.11,23.954]
[1728334590366,7.06348156,146.2,146.13,17.1078]
[1728334590674,6.8413,146.17,146.14,1.36824557]
[1728334591989,26.8404,146.19,146.15,6.842]
[1728334592196,7.06981361,146.2,146.16,12.57413609]
[1728334592402,6.839,146.22,146.18,19.41493609]
[1728334592695,6.839,146.22,146.18,6.8408]
[1728334592895,6.8403,146.2,146.17,16.3081]
[1728334593066,6.8396,146.21,146.17,16.3081]
[1728334595079,6.8396,146.21,146.17,23.1493]
[1728334596179,6.839,146.23,146.19,23.776884]
[1728334596382,6.839,146.23,146.2,1.36778681]
[1728334597388,6.839,146.23,146.19,23.776884]
[1728334597767,6.8391,146.22,146.18,23.9422]
[1728334605089,6.8391,146.22,146.19,1.36778505]
[1728334605295,6.8386,146.23,146.19,1.36778505]
[1728334605783,6.8386,146.23,146.19,8.20798505]
[1728334610296,20.0,146.25,146.19,1.36778505]
[1728334610486,6.8381,146.24,146.2,6.8398]
[1728334610689,20.0,146.25,146.21,1.36775278]
[1728334610996,6.8381,146.24,146.2,6.8398]
[1728334611296,6.8381,146.24,146.21,1.36775291]
[1728334612600,6.8377,146.25,146.21,8.20685291]
[1728334613895,20.0,146.28,146.22,6.8385]
[1728334614089,6.8374,146.26,146.23,1.36755907]
[1728334614290,6.8376,146.25,146.23,1.36755907]
[1728334614488,6.8376,146.25,146.22,1.36755883]
[1728334616284,6.8376,146.25,146.21,6.8393]
[1728334617680,6.8376,146.25,146.22,1.36756869]
[1728334618186,6.8376,146.25,146.21,6.8393]
[1728334620402,20.0,146.28,146.2,17.0995]
[1728334620610,6.8391,146.22,146.18,6.8405]
[1728334620782,17.0941,146.25,146.17,33.4106]
[1728334621091,6.84,146.2,146.17,33.4106]
[1728334621699,16.1197,146.22,146.14,17.1068]
[1728334622003,6.841,146.18,146.14,6.8427]
[1728334622207,6.8419,146.16,146.12,6.8435]
[1728334625309,6.8432,146.13,146.08,29.68743609]
[1728334625517,37.22719,146.19,146.09,6.8449]
[1728334625518,6.8428,146.14,146.09,6.8449]
[1728334627404,6.8428,146.14,146.1,6.8446]
[1728334627618,6.8424,146.15,146.11,1.36858834]
[1728334628310,6.8424,146.15,146.11,8.21258834]
[1728334628806,17.1017,146.19,146.11,8.21258834]
[1728334628997,6.8414,146.17,146.13,6.8432]
[1728334629190,6.8414,146.17,146.14,1.36839076]
[1728334629791,6.8414,146.17,146.13,6.8431]
[1728334630501,6.8414,146.17,146.12,17.1087]
[1728334630693,0.25098,146.2,146.12,17.1087]
[1728334630916,6.8423,146.15,146.12,17.1087]
[1728334631812,6.8419,146.16,146.12,17.1087]
[1728334635417,6.8432,146.13,146.1,6.8444]
[1728334635789,6.8441,146.11,146.07,6.8456]
[1728334636522,41.007074,146.16,146.06,23.9625]
[1728334636523,6.8447,146.1,146.06,23.9625]
[1728334638523,6.8442,146.11,146.07,8.21500162]
[1728334638899,6.8442,146.11,146.07,6.846]
[1728334639101,6.8451,146.09,146.05,6.8468]
[1728334639322,6.8442,146.11,146.07,6.846]
[1728334639622,6.8438,146.12,146.08,8.21434152]
[1728334639807,6.8438,146.12,146.08,6.8454]
[1728334640421,6.8438,146.12,146.08,8.2143509]
[1728334640724,6.8438,146.12,146.07,17.1146]
[1728334640725,8.2127509,146.12,146.07,15.3289509]
[1728334640893,8.2127509,146.12,146.08,1.36895319]
[1728334641920,8.2127509,146.12,146.08,8.21435319]
[1728334644224,8.2127509,146.12,146.08,6.8454]
[1728334644715,1.3689509,146.12,146.07,15.3289509]
[1728334644911,6.8444,146.11,146.07,22.1748509]
[1728334650042,1.3689509,146.13,146.09,23.9576]
[1728334650410,1.3689509,146.13,146.06,0.12549]
[1728334650617,6.8437,146.12,146.08,6.8453]
[1728334650830,6.8449,146.1,146.06,6.8464]
[1728334651010,1.3689509,146.09,146.06,6.8464]
[1728334652258,8.2140509,146.09,146.05,23.964]
[1728334653728,1.3689509,146.09,146.06,6.8463]
[1728334653930,8.2135509,146.1,146.06,6.8463]
[1728334655346,28.2127509,146.12,146.08,6.8454]
[1728334657729,44.027864,146.09,146.0,7.09783733]
[1728334657920,44.027864,146.09,145.95,16.5317]
[1728334657921,6.8488,146.01,145.95,16.5317]
[1728334658325,20.0,146.04,145.97,12.57413609]
[1728334658520,6.8487,146.02,145.97,12.57413609]
[1728334658721,6.8487,146.02,145.97,19.42463609]
[1728334659312,6.8487,146.02,145.98,23.776884]
[1728334659639,6.8487,146.02,145.99,1.36974145]
[1728334660830,1.3689509,146.07,145.98,23.776884]
[1728334661045,6.8479,146.03,145.99,1.36974147]
[1728334661338,6.8479,146.03,145.98,30.626784]
[1728334661642,6.8485,146.02,145.98,30.626784]
[1728334662837,6.8485,146.02,145.97,30.627184]
[1728334665245,6.8492,146.01,145.97,23.776884]
[1728334665426,21.3689509,146.05,145.97,23.776884]
[1728334665626,6.8496,146.0,145.96,23.9783]
[1728334665840,17.1214,146.02,145.93,17.1309]
[1728334666040,1.3689509,146.01,145.93,23.9833]
[1728334666245,6.8503,145.98,145.93,23.9833]
[1728334666746,6.8503,145.98,145.94,6.8519]
[1728334667134,6.8503,145.98,145.95,23.902374]
[1728334668932,6.8503,145.98,145.94,23.902374]
[1728334669632,6.8503,145.98,145.94,30.754474]
[1728334669835,6.8503,145.98,145.94,30.628984]
[1728334670032,1.3689509,146.01,145.94,23.776884]
[1728334670239,6.8503,145.98,145.94,30.628884]
[1728334671958,6.8498,145.99,145.95,8.34716222]
[1728334672130,6.8498,145.99,145.95,6.97709]
[1728334672635,16.3999509,146.02,145.97,23.776884]
[1728334672842,6.8493,146.0,145.97,23.776884]
[1728334673044,6.8488,146.01,145.97,6.8505]
[1728334675237,15.031,146.02,145.97,1.36984111]
[1728334675437,6.8484,146.02,145.98,30.626684]
[1728334675656,6.8484,146.02,145.99,1.36972751]
[1728334675956,6.8483,146.02,145.99,1.36972751]
[1728334680539,1.3689509,146.04,145.97,17.1263]
[1728334680540,1.3689509,146.01,145.97,17.1263]
[1728334680762,6.8494,146.0,145.97,17.1263]
[1728334681061,6.8507,145.97,145.93,17.1305]
[1728334681232,6.8507,145.97,145.93,23.9827]
[1728334681437,6.8507,145.97,145.93,17.1305]
[1728334681652,6.8507,145.97,145.94,6.8521]
[1728334682448,6.8504,145.98,145.94,6.8521]
[1728334684661,1.3689509,146.01,145.93,17.1305]
[1728334684843,6.8507,145.97,145.94,23.776884]
[1728334685047,6.8518,145.95,145.91,29.0287]
[1728334685258,6.8513,145.96,145.92,30.755374]
[1728334685450,6.8513,145.96,145.92,6.853]
[1728334687364,6.8508,145.97,145.93,6.8525]
[1728334687750,6.8508,145.97,145.92,41.034774]
[1728334687751,6.8508,145.97,145.94,8.22224853]
[1728334688063,6.8504,145.98,145.94,6.852]
[1728334689863,8.2199509,145.97,145.93,6.8524]
[1728334690271,1.3689509,145.98,145.94,1.37034885]
[1728334690449,6.8511,145.97,145.93,8.22245637]
[1728334691661,6.8511,145.97,145.93,6.8522]
[1728334692364,23.6564509,145.99,145.95,6.8513]
[1728334692663,6.6127,146.01,145.97,6.8504]
[1728334692664,8.2177509,146.01,145.97,6.8504]
[1728334692854,6.8493,146.0,145.96,23.9786]
[1728334693244,1.3689509,146.01,145.96,23.9786]
[1728334693447,8.2180509,146.01,145.97,6.8507]
[1728334693669,6.8493,146.0,145.96,23.9786]
[1728334694951,8.2179509,146.01,145.96,23.9786]
[1728334695457,8.2179509,146.01,145.96,17.1276]
[1728334695458,6.8499,145.99,145.96,17.1276]
[1728334695969,6.8508,145.97,145.93,6.8524]
[1728334696273,6.8504,145.98,145.94,6.852]
[1728334700948,8.2198509,145.97,145.92,23.9849]
[1728334701162,1.3689509,145.96,145.92,23.9849]
[1728334701477,6.8508,145.97,145.93,6.8524]
[1728334702154,1.3689509,145.96,145.93,6.8524]
[1728334702966,1.3689509,145.96,145.92,23.9849]
[1728334703268,6.8503,145.98,145.94,6.852]
[1728334703861,8.2188509,145.99,145.94,8.22225797]
[1728334704057,6.8499,145.99,145.94,6.852]
[1728334704461,1.3689509,145.98,145.94,6.852]
[1728334705069,8.2191509,145.98,145.94,6.852]
[1728334705873,6.8502,145.98,145.94,6.852]
[1728334707567,6.8496,146.0,145.96,6.851]
[1728334708155,8.2191509,145.99,145.95,6.8515]
[1728334710071,1.3689509,145.99,145.94,17.1298]
[1728334710268,6.8502,145.98,145.94,23.9818]
[1728334710577,6.8513,145.96,145.92,6.8527]
[1728334710782,1.3689509,145.95,145.91,23.9859]
[1728334711075,8.2202509,145.96,145.91,23.9859]
[1728334711285,6.8524,145.94,145.88,67.4962464]
[1728334711580,6.8518,145.95,145.91,6.8532]
[1728334711884,6.8518,145.95,145.91,8.22359408]
[1728334712575,6.8518,145.95,145.91,6.8532]
[1728334714177,6.8518,145.95,145.9,17.1346]
[1728334714374,8.2210509,145.94,145.91,6.8533]
[1728334715969,6.8521,145.94,145.91,6.8533]
[1728334718701,6.8518,145.95,145.91,6.8533]
[1728334720188,1.3689509,145.94,145.9,17.1346]
[1728334720364,6.8528,145.93,145.9,17.1346]
[1728334721287,1.3689509,145.96,145.9,17.1346]
[1728334721592,6.8522,145.94,145.9,23.9884]
[1728334721888,1.3689509,145.93,145.9,23.9884]
[1728334722082,6.8519,145.95,145.91,6.8531]
[1728334726479,20.0,145.97,145.92,1.37044813]
[1728334726672,6.8513,145.96,145.93,6.8525]
[1728334726869,21.3689509,145.97,145.92,17.1324]
[1728334727189,6.8519,145.95,145.92,17.1324]
[1728334727391,6.8519,145.95,145.91,6.8532]
[1728334729795,6.8519,145.95,145.92,1.37044178]
[1728334730372,6.8519,145.95,145.91,6.8532]
[1728334730673,1.3689509,145.94,145.89,23.776884]
[1728334730872,6.8526,145.93,145.89,30.630984]
[1728334733372,6.8525,145.94,145.9,29.83412609]
[1728334733878,6.8525,145.94,145.9,17.25999]
[1728334734271,6.8525,145.94,145.9,17.1345]
[1728334735084,6.8525,145.94,145.9,23.9881]
[1728334738996,6.8525,145.94,145.9,25.35865401]
[1728334739204,1.3689509,145.96,145.9,18.50505401]
[1728334739496,6.8517,145.95,145.91,6.8533]
[1728334739802,6.8517,145.95,145.92,1.37043589]
[1728334740297,6.8512,145.96,145.92,8.22323589]
[1728334740477,1.3689509,145.95,145.91,30.630084]
[1728334740676,1.3689509,145.96,145.91,30.630084]
[1728334740892,0.12549,145.95,145.88,0.8360464]
[1728334741095,16.1273,145.92,145.88,0.8360464]
[1728334741299,6.8544,145.89,145.88,0.8360464]
[1728334742195,8.3488409,145.89,145.88,0.8360464]
[1728334742398,8.2233509,145.89,145.88,0.8360464]
[1728334743282,27.10538,145.89,145.88,0.8360464]
[1728334743491,26.8544,145.89,145.88,0.8360464]
[1728334745078,6.8541,145.9,145.88,0.8360464]
[1728334745273,1.3689509,145.89,145.88,0.8360464]
[1728334746004,8.2233509,145.89,145.88,0.8360464]
[1728334750380,21.3689509,145.91,145.88,0.8360464]
[1728334750698,6.8543,145.9,145.88,0.8360464]
[1728334750895,1.3689509,145.89,145.88,0.8360464]
[1728334753806,8.2233509,145.89,145.88,0.8360464]
[1728334754603,1.3689509,145.89,145.88,0.8360464]
[1728334754909,8.2230509,145.9,145.88,0.8360464]
[1728334755501,6.8544,145.89,145.88,0.8360464]
[1728334757384,26.8544,145.89,145.88,0.8360464]
[1728334757584,26.97989,145.89,145.88,0.8360464]
[1728334759410,26.8544,145.89,145.88,0.8360464]
[1728334770223,1.3689509,145.91,145.9,6.854]
[1728334770410,1.3689509,145.91,145.88,0.8360464]
[1728334770597,8.2225509,145.91,145.88,0.8360464]
[1728334770912,6.8544,145.89,145.88,0.8360464]
[1728334771117,8.2233509,145.89,145.88,0.8360464]
[1728334771622,52.2512149,145.89,145.88,0.8360464]
[1728334773709,28.3488409,145.89,145.88,0.8360464]
[1728334796236,28.2233509,145.89,145.88,0.8360464]
[1728334797128,8.2233509,145.89,145.88,0.8360464]
[1728334797331,6.8544,145.89,145.88,0.8360464]
[1728334798628,6.8544,145.89,145.88,0.3360464]
[1728334798629,26.8544,145.89,145.88,0.3360464]
[1728334800341,20.0,145.89,145.88,0.3360464]
[1728334800723,1.3689509,145.91,145.88,0.3360464]
[1728334800917,21.3689509,145.91,145.88,0.3360464]
[1728334802433,21.3689509,145.91,145.88,16.6751464]
[1728334805233,1.3689509,145.91,145.88,16.6751464]
[1728334812224,7.16110196,145.92,145.88,16.6751464]
[1728334813338,1.3689509,145.91,145.88,16.6751464]
[1728334815249,15.17698533,145.97,145.88,16.6751464]
[1728334815439,20.0,145.96,145.88,16.6751464]
[1728334816047,1.3689509,145.95,145.88,16.6751464]
[1728334817350,1.3689509,145.95,145.88,29.24928249]
[1728334817855,1.3689509,145.95,145.88,16.6751464]
[1728334828948,1.3689509,145.95,145.88,29.24928249]
[1728334830465,1.3689509,145.95,145.88,16.6751464]
[1728334832146,6.8526,145.93,145.9,6.8539]
[1728334834042,6.8538,145.91,145.88,16.6751464]
[1728334834360,1.3689509,145.9,145.88,16.6751464]
[1728334835063,6.8538,145.91,145.88,16.6751464]
[1728334838365,6.8531,145.92,145.88,23.5297464]
[1728334838758,6.8531,145.92,145.89,6.8544]
[1728334840062,1.3689509,145.95,145.88,16.6751464]
[1728334840264,17.1303,145.94,145.88,16.6751464]
[1728334840446,1.3689509,145.93,145.88,16.6751464]
[1728334840850,6.8532,145.92,145.88,23.5297464]
[1728334841352,6.8532,145.92,145.89,6.8544]
[1728334841555,6.8522,145.94,145.9,8.22454811]
[1728334842072,6.8522,145.94,145.9,6.8539]
[1728334843267,8.2208509,145.95,145.91,8.22400259]
[1728334843764,8.2208509,145.95,145.88,29.24928249]
[1728334843967,8.2208509,145.95,145.92,6.853]
[1728334844344,1.3689509,145.95,145.91,17.1337]
[1728334844549,6.8528,145.93,145.89,6.8543]
[1728334844759,6.8528,145.93,145.88,33.8115464]
[1728334844951,6.8528,145.93,145.89,6.8543]
[1728334849158,1.3689509,145.92,145.89,6.8543]
[1728334851682,6.8528,145.93,145.89,6.8543]
[1728334852477,6.8528,145.93,145.9,6.8539]
[1728334852658,6.8523,145.94,145.9,6.8539]
[1728334852859,1.3689509,145.93,145.9,6.8539]
[1728334853976,1.3689509,145.95,145.88,29.24928249]
[1728334854276,8.2206509,145.95,145.9,17.1349]
[1728334854471,8.2202509,145.96,145.92,6.853]
[1728334855484,6.8513,145.96,145.92,6.853]
[1728334855779,1.3689509,145.95,145.92,6.853]
[1728334856774,8.2202509,145.96,145.92,6.853]
[1728334857661,6.8513,145.96,145.92,6.853]
[1728334859063,8.2197509,145.97,145.93,6.8525]
[1728334860583,6.8512,145.96,145.93,6.8525]
[1728334862683,8.2197509,145.97,145.94,6.852]
[1728334862876,1.3689509,145.97,145.94,6.852]
[1728334865585,8.2188509,145.99,145.95,6.8516]
[1728334865789,8.2188509,145.99,145.95,8.22178932]
[1728334866084,1.3689509,146.0,145.94,12.57413609]
[1728334866270,8.2185509,146.0,145.97,6.8506]
[1728334866472,6.849,146.01,145.97,6.8506]
[1728334866672,1.3689509,146.0,145.97,6.8506]
[1728334866898,6.849,146.01,145.97,8.22058973]
[1728334868684,6.8485,146.02,145.98,6.8502]
[1728334869306,1.3689509,146.01,145.98,6.8502]
[1728334869471,6.8481,146.03,145.99,6.8497]
[1728334869678,1.3689509,146.02,145.99,8.21952094]
[1728334869879,8.2170509,146.03,145.99,6.8497]
[1728334870187,6.8481,146.03,145.99,6.8497]
[1728334872093,6.8502,145.99,145.95,23.9796]
[1728334872280,6.8507,145.97,145.93,28.6182]
[1728334872482,6.8499,145.99,145.95,6.8515]
[1728334872681,8.2188509,145.99,145.95,6.8515]
[1728334873191,6.8499,145.99,145.95,6.8515]
[1728334873595,6.8493,146.0,145.96,8.22106434]
[1728334874477,6.8493,146.0,145.96,6.851]
[1728334874678,21.3689509,146.04,145.95,23.776884]
[1728334874890,6.8493,146.0,145.97,6.8507]
[1728334875098,6.8493,146.0,145.96,23.9788]
[1728334876377,6.8493,146.0,145.96,17.1278]
[1728334876583,6.8493,146.0,145.97,6.8507]
[1728334877097,6.8493,146.0,145.96,17.1278]
[1728334877308,6.8489,146.01,145.97,6.8507]
[1728334877482,8.2182509,146.0,145.96,23.9788]
[1728334877803,6.849,146.01,145.97,6.8506]
[1728334878101,6.849,146.01,145.97,8.22052796]
[1728334878300,6.849,146.01,145.97,6.8506]
[1728334878704,6.8483,146.02,145.98,6.8499]
[1728334878894,8.2169509,146.03,145.99,6.8496]
[1728334879194,6.848,146.03,145.99,6.8496]
[1728334879609,1.3689509,146.07,146.0,18.49280078]
[1728334879782,6.847,146.05,146.01,6.8485]
[1728334880790,1.3689509,146.07,146.01,6.8485]
[1728334880992,6.8474,146.04,146.01,6.8485]
[1728334885319,1.3689509,146.07,146.03,6.8478]
[1728334885320,8.2153509,146.07,146.03,6.8478]
[1728334885601,21.3689509,146.09,146.02,18.49019029]
[1728334885995,6.8463,146.07,146.03,6.8477]
[1728334886199,8.2152509,146.07,146.03,6.8477]
[1728334886494,1.3689509,146.09,146.04,23.7348]
[1728334886698,1.3689509,146.11,146.05,1.36919692]
[1728334887418,6.8454,146.09,146.05,8.21599692]
[1728334889887,1.3689509,146.11,146.05,8.21599692]
[1728334890110,6.8449,146.1,146.05,6.8468]
[1728334890408,6.8449,146.1,146.06,6.8463]
[1728334891295,6.8449,146.1,146.07,6.846]
[1728334891486,6.8439,146.12,146.08,8.2145205]
[1728334892113,6.8439,146.12,146.08,1.3690205]
[1728334892408,6.8438,146.12,146.07,6.8458]
[1728334892611,6.8442,146.11,146.07,6.8458]
[1728334893084,6.8437,146.12,146.08,6.8454]
[1728334895914,21.3689509,146.14,146.09,16.3951316]
[1728334896096,21.3689509,146.14,146.1,6.8444]
[1728334896097,28.2120509,146.14,146.1,6.8444]
[1728334897109,6.8435,146.13,146.09,16.3951316]
[1728334898999,6.8435,146.13,146.09,23.2400316]
[1728334899314,6.8435,146.13,146.09,21.8712]
[1728334899612,1.3689509,146.12,146.05,16.0896]
[1728334899815,6.8457,146.08,146.05,16.0896]
[1728334900614,1.3689509,146.11,146.05,16.0896]
[1728334900615,6.8461,146.07,146.05,16.0896]
[1728334901115,6.8456,146.08,146.05,16.0896]
[1728334901301,6.8465,146.06,146.05,16.0896]
[1728334901502,1.3689509,146.09,146.05,16.0896]
[1728334901705,6.8478,146.04,146.02,16.0896]
[1728334901895,6.8479,146.03,146.02,16.0896]
[1728334902298,6.8474,146.04,146.02,16.0896]
[1728334903323,1.3689509,146.06,146.02,16.0896]
[1728334903510,6.8479,146.03,146.02,16.0896]
[1728334904026,6.8475,146.04,146.02,16.0896]
[1728334905502,6.847,146.05,146.02,16.0896]
[1728334906412,8.2154509,146.06,146.02,22.9379]
[1728334906617,1.3689509,146.06,146.02,16.0896]
[1728334907008,6.847,146.05,146.02,16.0896]
[1728334909213,1.3689509,146.06,146.02,16.0896]
[1728334909526,8.2154509,146.06,146.02,22.9378]
[1728334909721,6.8465,146.06,146.03,1.36941155]
[1728334912629,6.8461,146.07,146.03,8.21721155]
[1728334912814,1.3689509,146.09,146.03,17.1195]
[1728334912815,6.8456,146.08,146.03,17.1195]
[1728334913124,8.2138509,146.1,146.06,6.8464]
[1728334913333,6.8449,146.1,146.06,6.8464]
[1728334914833,6.8451,146.09,146.05,30.749074]
[1728334915402,1.3689509,146.12,146.05,23.902374]
[1728334915608,6.8447,146.1,146.06,23.9621]
[1728334915907,6.8447,146.1,146.06,25.33113061]
[1728334916936,6.8447,146.1,146.07,1.36902122]
[1728334917512,6.8443,146.11,146.07,8.21492122]
[1728334918023,6.8443,146.11,146.08,1.3689136]
[1728334918543,6.844,146.12,146.08,6.8453]
[1728334920332,21.3689509,146.13,146.07,16.0127]
[1728334920830,6.8449,146.1,146.07,16.0127]
[1728334921144,1.3689509,146.13,146.07,16.0127]
[1728334921304,21.3689509,146.13,146.07,22.8584]
[1728334921506,6.8439,146.12,146.08,8.21437694]
[1728334921908,21.3689509,146.13,146.07,16.0127]
[1728334922107,26.8432,146.13,146.09,23.9572]
[1728334922414,6.8437,146.12,146.09,17.1123]
[1728334922923,6.8435,146.13,146.09,23.9573]
[1728334924916,1.3689509,146.15,146.09,17.1123]
[1728334925118,6.8428,146.14,146.1,8.21327042]
[1728334925334,6.8432,146.13,146.1,1.36867042]
[1728334928934,6.8428,146.14,146.1,14.39637042]
[1728334929446,6.3428,146.14,146.1,14.39637042]
[1728334929647,1.3689509,146.16,146.07,16.0127]
[1728334929648,21.3689509,146.16,146.07,16.0127]
[1728334929822,21.3689509,146.16,146.03,4.25139409]
[1728334929823,0.12549,146.14,146.03,39.4702]
[1728334930022,17.1107,146.11,146.03,22.3513]
[1728334930326,6.8471,146.05,146.03,22.3513]
[1728334930510,6.8471,146.05,146.03,15.9807]
[1728334931733,20.0,146.08,146.04,6.8471]
[1728334932048,6.846,146.07,146.03,22.8285]
[1728334933845,6.8456,146.08,146.04,6.8474]
[1728334934032,8.2136509,146.1,146.05,6.8465]
[1728334934221,1.3689509,146.1,146.05,6.8465]
[1728334934421,1.4944409,146.13,146.05,6.8465]
[1728334935028,6.8447,146.1,146.05,6.8465]
[1728334935224,6.8451,146.09,146.05,6.8465]
[1728334935432,8.2146509,146.08,146.04,23.9654]
[1728334935635,6.8457,146.08,146.04,23.9654]
[1728334935835,6.8457,146.08,146.04,17.1181]
[1728334936541,6.8457,146.08,146.04,18.48737808]
[1728334937035,6.8457,146.08,146.04,23.9655]
[1728334938235,6.8451,146.09,146.05,6.8468]
[1728334942152,1.3689509,146.11,146.06,7.47253722]
[1728334942330,1.3689509,146.13,146.06,6.1034]
[1728334944049,6.8448,146.1,146.06,12.9498]
[1728334947049,1.3689509,146.13,146.06,18.67753609]
[1728334947246,6.8437,146.12,146.08,6.8453]
[1728334951059,8.2131509,146.11,146.07,23.9602]
[1728334951462,8.2131509,146.11,146.07,25.32916408]
[1728334951836,6.8438,146.12,146.08,6.8452]
[1728334952863,6.8441,146.11,146.08,6.8452]
[1728334953949,6.8441,146.11,146.08,8.21416244]
[1728334958855,8.2121509,146.13,146.09,6.8446]
[1728334959753,6.8432,146.13,146.09,6.8446]
[1728334961653,8.2117509,146.14,146.1,8.21331211]
[1728334964353,6.8428,146.14,146.1,6.8445]
[1728334964665,6.8428,146.14,146.1,8.21316315]
[1728334964852,6.8425,146.15,146.11,6.8439]
[1728334969962,7.14712903,146.19,146.13,17.1077]
[1728334970170,18.28852457,146.22,146.16,6.8417]
[1728334970171,6.8402,146.2,146.16,6.8417]
[1728334971273,8.2093509,146.19,146.15,23.9475]
[1728334971462,1.3689509,146.19,146.15,17.1054]
[1728334971659,21.4944409,146.22,146.15,23.9473]
[1728334971987,6.8401,146.2,146.16,6.8417]
[1728334972172,8.2090509,146.2,146.16,6.8417]
[1728334972772,20.0,146.2,146.17,6.8413]
[1728334973069,20.0,146.2,146.15,17.1054]
[1728334973250,20.0,146.2,146.17,6.8413]
[1728334973445,20.0,146.2,146.16,6.8416]
[1728334973446,6.8399,146.2,146.16,6.8416]
[1728334974958,1.3689509,146.23,146.15,17.1054]
[1728334975156,6.8404,146.19,146.15,23.9475]
[1728334978776,6.8404,146.19,146.16,1.36813263]
[1728334978971,6.8401,146.2,146.16,8.20983263]
[1728334979179,6.8395,146.21,146.17,6.8411]
[1728334979378,6.8395,146.21,146.18,1.36795408]
[1728334979779,6.8395,146.21,146.17,23.9444]
[1728334981261,1.3689509,146.2,146.13,6.8429]
[1728334981469,34.5792509,146.2,146.11,17.1093]
[1728334981663,6.8414,146.17,146.13,6.843]
[1728334982176,21.3689509,146.19,146.12,30.0]
[1728334982483,21.3689509,146.19,146.14,6.8427]
[1728334982484,6.8412,146.18,146.14,6.8427]
[1728334985066,26.8405,146.19,146.15,23.9474]
[1728334985386,6.8405,146.19,146.15,23.9474]
[1728334985590,1.3689509,146.2,146.16,6.8417]
[1728334985889,6.8401,146.2,146.16,6.8417]
[1728334987981,6.8397,146.21,146.17,6.8411]
[1728334996001,6.8399,146.2,146.16,6.8416]
[1728334998298,6.8395,146.21,146.17,6.841]
[1728335001193,6.8393,146.22,146.18,6.8407]
[1728335009311,6.8386,146.23,146.17,17.1032]
[1728335009482,6.8386,146.23,146.16,36.35102009]
[1728335009483,0.5,146.25,146.2,17.0996]
[1728335009684,7.338,146.25,146.21,6.8392]
[1728335009913,7.338,146.25,146.2,17.0996]
[1728335009914,1.8689509,146.25,146.2,17.0996]
[1728335010208,1.8689509,146.25,146.18,15.69409]
[1728335010393,1.8689509,146.25,146.19,17.1008]
[1728335010597,6.8388,146.23,146.19,23.9411]
[1728335010905,6.8388,146.23,146.19,17.1008]
[1728335011110,6.8388,146.23,146.19,23.9409]
[1728335012509,6.8388,146.23,146.2,8.20763363]
[1728335012708,1.8689509,146.25,146.2,6.8399]
[1728335012908,6.8383,146.24,146.2,6.8399]
[1728335014205,6.8383,146.24,146.21,1.36765264]
[1728335014908,6.8383,146.24,146.21,8.20705264]
[1728335015304,7.3377,146.25,146.21,8.20705264]
[1728335015710,0.5,146.25,146.22,6.8389]
[1728335017118,7.3379,146.25,146.21,23.9375]
[1728335019216,1.3689509,146.24,146.2,6.8397]
[1728335019421,6.839,146.22,146.19,6.8402]